bitfinex/quotes_ETHUSD_20241022
["timestamp","ask_amount","ask_price","bid_price","bid_amount"]
[1729613097559,2.47182569,2623.3,2622.9,5.26059175]
[1729613098228,2.47182569,2623.3,2622.9,1.44805175]
[1729613098428,1.67552569,2623.2,2622.8,3.81266]
[1729613098842,1.67552569,2623.2,2622.8,7.62531]
[1729613099157,1.67552569,2623.2,2622.8,3.81265]
[1729613099316,0.8273,2623.1,2622.8,3.81265]
[1729613099516,0.8273,2623.1,2622.9,0.381265]
[1729613099961,0.8273,2623.1,2622.7,3.81281]
[1729613101548,0.8273,2623.1,2622.8,3.81269]
[1729613103039,0.8273,2623.1,2622.7,7.62561]
[1729613103376,2.50282569,2623.1,2622.6,4.6316023]
[1729613103581,0.8273,2623.1,2622.6,0.8186623]
[1729613103743,0.7981,2622.8,2622.5,3.81307]
[1729613104077,0.7981,2622.8,2622.3,21.16552569]
[1729613104078,0.7981,2622.8,2622.6,1.67552569]
[1729613104286,0.7981,2622.8,2622.6,3.81299]
[1729613104434,0.7981,2622.8,2622.7,0.54885157]
[1729613105599,0.7981,2622.8,2622.4,7.62638]
[1729613105752,1.67552569,2622.7,2622.3,19.49]
[1729613105957,0.7981,2622.8,2622.3,23.30344]
[1729613105958,2.47362569,2622.8,2622.3,23.30344]
[1729613106180,2.47362569,2622.8,2622.4,3.8133]
[1729613106518,0.7981,2622.8,2622.4,6.69253057]
[1729613106807,0.7981,2622.8,2622.6,3.813]
[1729613106959,0.8179,2623.1,2622.6,3.81294]
[1729613108302,2.49342569,2623.1,2622.6,3.81294]
[1729613108486,2.49342569,2623.1,2622.6,5.19248282]
[1729613108658,0.8179,2623.1,2622.6,5.19248282]
[1729613109395,2.49342569,2623.1,2622.6,5.19248282]
[1729613111300,0.8179,2623.1,2622.7,5.48835569]
[1729613111464,0.8179,2623.1,2622.8,1.07570929]
[1729613112661,2.49342569,2623.1,2622.8,1.07570929]
[1729613113004,2.49342569,2623.1,2622.6,4.61111194]
[1729613113302,0.7914,2622.8,2622.5,0.79820194]
[1729613113469,0.7914,2622.8,2622.5,3.81314]
[1729613114107,0.7914,2622.8,2622.6,3.81299]
[1729613114804,0.7754,2623.1,2622.6,3.81299]
[1729613115163,2.45092569,2623.1,2622.6,3.81299]
[1729613115905,0.7754,2623.1,2622.6,3.81299]
[1729613116071,0.7754,2623.1,2622.7,3.81285]
[1729613116460,0.7754,2623.1,2622.8,3.81264]
[1729613117301,0.783,2623.3,2622.8,3.81264]
[1729613117525,0.783,2623.3,2622.9,3.88872878]
[1729613117696,0.8187,2623.7,2623.1,1.67552569]
[1729613117865,0.8187,2623.7,2623.1,7.62444]
[1729613117866,2.49422569,2623.7,2623.1,7.62444]
[1729613118064,2.49422569,2623.7,2623.1,8.71394676]
[1729613118065,1.67552569,2623.6,2623.1,8.71394676]
[1729613118299,1.67552569,2623.6,2623.1,4.90172676]
[1729613118469,1.67552569,2623.6,2623.1,8.71393676]
[1729613118809,1.67552569,2623.5,2623.1,4.90171676]
[1729613119163,1.67552569,2623.6,2623.1,4.90171676]
[1729613119363,1.67552569,2623.5,2623.1,4.90171676]
[1729613120117,1.67400788,2623.5,2623.2,0.95110368]
[1729613120800,1.67552569,2623.5,2623.0,4.60919]
[1729613121465,1.67552569,2623.6,2623.0,4.60919]
[1729613121672,1.67552569,2623.6,2623.1,3.81222]
[1729613123470,4.63011,2623.7,2623.1,3.81228]
[1729613123671,1.67552569,2623.6,2623.1,3.81228]
[1729613123912,1.67552569,2623.6,2623.1,4.90181276]
[1729613124271,1.67552569,2623.4,2622.9,4.61076194]
[1729613124473,1.67552569,2623.3,2622.9,0.79820194]
[1729613124724,1.67552569,2623.3,2622.8,4.60104]
[1729613124917,0.7521,2623.2,2622.8,3.81264]
[1729613125070,0.7521,2623.2,2622.9,2.48892419]
[1729613125778,2.42762569,2623.2,2622.7,24.88944194]
[1729613126678,1.67552569,2622.9,2622.7,20.28820194]
[1729613127012,1.67552569,2623.1,2622.6,4.61117194]
[1729613127178,1.67552569,2623.1,2622.6,5.86986939]
[1729613129925,1.67552569,2623.1,2622.7,0.79820194]
[1729613130546,6.23977569,2623.2,2622.6,4.61117194]
[1729613130856,1.67552569,2623.1,2622.6,4.61117194]
[1729613131145,1.67552569,2623.1,2622.7,0.79820194]
[1729613131525,6.23977569,2623.2,2622.7,0.79820194]
[1729613132106,0.09025886,2623.1,2622.7,0.79820194]
[1729613132507,2.42762569,2623.2,2622.7,0.79820194]
[1729613132945,0.09016151,2623.1,2622.7,0.79820194]
[1729613133664,0.09016151,2623.1,2622.7,4.61099194]
[1729613133810,0.09016151,2623.1,2622.8,0.79820194]
[1729613134016,0.09016151,2623.1,2622.7,4.61099194]
[1729613134414,0.09016151,2623.1,2623.0,5.48794569]
[1729613134615,0.09016151,2623.1,2623.0,4.61062194]
[1729613134889,1.67552569,2623.5,2623.0,4.61062194]
[1729613135040,0.09011453,2623.1,2623.0,4.61062194]
[1729613135246,1.67552569,2623.5,2623.0,4.61062194]
[1729613135757,4.6356,2623.6,2623.0,3.81242]
[1729613135758,1.76588533,2623.4,2623.0,3.81242]
[1729613135980,1.76588533,2623.4,2623.0,4.61062194]
[1729613136784,0.09035964,2623.4,2623.0,4.61062194]
[1729613137539,0.09035964,2623.4,2623.1,3.81226]
[1729613137744,0.824,2623.6,2623.0,2.47372763]
[1729613137973,4.60914,2624.0,2623.4,5.48727569]
[1729613138172,0.7981,2624.0,2623.5,0.7523]
[1729613138442,0.7981,2624.0,2623.2,0.79820194]
[1729613138443,0.8136,2623.6,2623.2,0.8054]
[1729613138659,1.67552569,2623.4,2623.2,0.8054]
[1729613138860,1.76277079,2623.5,2623.2,0.8054]
[1729613139103,0.08693128,2623.3,2623.2,0.8054]
[1729613139286,1.67552569,2623.4,2623.0,5.43986194]
[1729613139617,0.08693128,2623.3,2623.0,5.43986194]
[1729613139759,0.08693128,2623.3,2623.0,6.81202838]
[1729613140067,1.67552569,2623.5,2623.0,6.81202838]
[1729613140257,0.08673714,2623.2,2623.0,5.43986194]
[1729613140458,1.67552569,2623.5,2623.0,5.43986194]
[1729613140895,0.08700924,2623.4,2623.0,5.43986194]
[1729613141407,1.67552569,2623.5,2623.0,1.62750194]
[1729613142174,1.67552569,2623.5,2623.0,0.8293]
[1729613142503,1.76253493,2623.4,2623.0,0.8293]
[1729613143605,0.08700924,2623.4,2623.0,0.8293]
[1729613143783,1.76253493,2623.4,2623.0,0.8293]
[1729613143995,0.08700924,2623.4,2623.0,0.8293]
[1729613144369,1.76253493,2623.4,2623.0,0.8293]
[1729613144566,6.21321042,2623.4,2623.0,0.8293]
[1729613144826,5.48752569,2623.3,2622.9,0.79820194]
[1729613145014,2.49422569,2623.2,2622.8,1.58850194]
[1729613145164,1.67552569,2623.1,2622.7,0.79820194]
[1729613145360,0.08684958,2623.0,2622.7,3.8128]
[1729613145586,0.8187,2623.2,2622.7,6.97181705]
[1729613145786,0.8187,2623.2,2622.7,7.77001899]
[1729613146026,0.08692755,2623.1,2622.7,7.77001899]
[1729613146178,0.08692755,2623.1,2622.7,3.95721899]
[1729613146384,0.08692755,2623.1,2622.7,0.79820194]
[1729613147294,5.57475324,2623.1,2622.7,0.79820194]
[1729613147624,0.08692755,2623.1,2622.6,5.41459194]
[1729613147908,0.08692755,2623.1,2622.7,4.61105194]
[1729613148466,0.08692755,2623.1,2622.7,6.28657763]
[1729613148667,0.08692755,2623.1,2622.7,7.49660468]
[1729613149074,0.08692755,2623.1,2622.7,5.82107899]
[1729613150114,0.08692755,2623.1,2622.7,5.02287705]
[1729613150317,0.08692755,2623.1,2622.7,0.79820194]
[1729613150567,1.76245324,2623.1,2622.6,5.41459194]
[1729613150752,1.67552569,2623.0,2622.6,1.60160194]
[1729613150951,1.67552569,2623.0,2622.6,0.79820194]
[1729613151256,0.08673417,2622.9,2622.5,4.61125194]
[1729613151442,0.08673417,2622.9,2622.6,4.61112194]
[1729613151644,1.67552569,2623.1,2622.6,4.61112194]
[1729613151967,4.63086,2623.2,2622.7,5.42766194]
[1729613151968,0.8187,2623.2,2622.7,5.42766194]
[1729613152114,0.8187,2623.2,2622.7,4.62946]
[1729613152115,0.08689012,2623.1,2622.7,4.62946]
[1729613152465,0.8187,2623.2,2622.7,7.10318763]
[1729613153058,0.08686389,2623.1,2622.7,5.42766194]
[1729613153556,0.08686389,2623.1,2622.7,8.31453368]
[1729613153774,0.08686389,2623.1,2622.7,6.63900799]
[1729613154839,0.8187,2623.2,2622.7,6.63900799]
[1729613155243,0.08686389,2623.1,2622.7,6.63900799]
[1729613155880,2.49422569,2623.2,2622.7,6.63900799]
[1729613156088,2.49422569,2623.2,2622.7,5.42766194]
[1729613156235,0.08670623,2623.1,2622.7,5.42766194]
[1729613157137,0.08670623,2623.1,2622.7,1.61490194]
[1729613157337,1.76223192,2623.1,2622.6,4.61118194]
[1729613157962,1.76223192,2623.1,2622.6,4.61116194]
[1729613158174,2.49422569,2623.2,2622.7,3.81282]
[1729613158357,3.12485326,2623.2,2622.7,3.81282]
[1729613158557,0.0866068,2623.1,2622.7,3.81282]
[1729613160543,1.76213249,2623.1,2622.6,4.61120194]
[1729613160735,2.49422569,2623.2,2622.7,3.81286]
[1729613160936,0.08657482,2623.1,2622.7,3.81286]
[1729613161164,0.08657482,2623.1,2622.6,0.79820194]
[1729613161365,6.30636569,2623.2,2622.6,4.61114194]
[1729613161568,1.76210051,2623.1,2622.6,4.61114194]
[1729613161747,1.76210051,2623.1,2622.6,3.81294]
[1729613161968,1.76210051,2623.1,2622.6,4.61114194]
[1729613162476,1.76210051,2623.1,2622.6,3.81294]
[1729613163671,5.57444051,2623.1,2622.5,5.38419194]
[1729613163888,2.80045166,2623.1,2622.5,5.38413194]
[1729613164097,2.80045166,2623.1,2622.6,3.81298]
[1729613164291,0.08657482,2623.1,2622.7,3.81283]
[1729613164449,0.08657482,2623.1,2622.6,2.47372763]
[1729613164781,5.57438051,2623.1,2622.6,0.79820194]
[1729613164987,0.08657482,2623.1,2622.6,4.61115194]
[1729613165139,0.08657482,2623.1,2622.6,3.81295]
[1729613165140,1.76210051,2623.1,2622.6,3.81295]
[1729613165344,0.08657482,2623.1,2622.6,3.81295]
[1729613165538,0.08657482,2623.1,2622.6,4.61115194]
[1729613165739,0.08657482,2623.1,2622.7,3.81285]
[1729613167255,0.08657482,2623.1,2622.6,7.49368168]
[1729613167757,0.08657482,2623.1,2622.6,5.81815599]
[1729613168744,1.76210051,2623.1,2622.6,5.81815599]
[1729613169096,1.67552569,2622.8,2622.5,0.79820194]
[1729613169246,0.7988,2622.7,2622.4,0.79820194]
[1729613169448,0.88501988,2622.7,2622.4,0.79820194]
[1729613169689,0.7988,2622.7,2622.3,0.79820194]
[1729613169902,5.48813569,2622.9,2622.4,5.48869569]
[1729613169903,0.08614187,2622.6,2622.4,5.48869569]
[1729613170055,0.08614187,2622.6,2622.5,3.81315]
[1729613170264,0.8058,2622.9,2622.5,3.81315]
[1729613170557,0.08623423,2622.8,2622.5,3.81313]
[1729613170974,0.08623423,2622.8,2622.5,4.61133194]
[1729613171190,0.08623423,2622.8,2622.5,3.81313]
[1729613171503,0.08623423,2622.8,2622.4,2.47372763]
[1729613171665,0.08623423,2622.8,2622.4,6.89643107]
[1729613172002,0.08623423,2622.8,2622.5,3.81315]
[1729613172474,0.08623423,2622.8,2622.4,6.89651107]
[1729613172675,0.08623423,2622.8,2622.5,3.81315]
[1729613173369,0.08623423,2622.8,2622.4,6.89650107]
[1729613173884,0.08623423,2622.8,2622.5,0.8093804]
[1729613174075,0.08623423,2622.8,2622.4,6.89650107]
[1729613176476,0.08623423,2622.8,2622.4,5.22097538]
[1729613176714,0.08623423,2622.8,2622.4,4.61146194]
[1729613177221,0.08623423,2622.8,2622.4,10.10020763]
[1729613177515,0.08623423,2622.8,2622.4,6.28694763]
[1729613178663,0.08623423,2622.8,2622.4,10.17639718]
[1729613178860,0.8058,2622.9,2622.4,10.10013763]
[1729613179065,0.08604663,2622.7,2622.5,3.81314]
[1729613179391,0.08596862,2622.6,2622.5,3.81314]
[1729613179593,0.8058,2622.9,2622.5,3.81314]
[1729613179810,0.08612463,2622.8,2622.6,1.67552569]
[1729613180016,0.8122,2623.2,2622.7,3.81286]
[1729613180165,0.8122,2623.2,2622.8,3.81265]
[1729613180365,0.08627997,2623.1,2622.8,3.81265]
[1729613180678,0.08627997,2623.1,2622.9,3.81256]
[1729613181068,0.08627997,2623.1,2623.0,3.81242]
[1729613181300,0.8327,2623.4,2623.0,4.75009521]
[1729613181500,0.08627997,2623.1,2623.0,5.55929521]
[1729613181814,5.48709569,2623.6,2623.0,5.55929521]
[1729613181815,2.50822569,2623.7,2623.1,3.81225]
[1729613181982,0.0867035,2623.6,2623.3,3.81193]
[1729613182318,0.0867035,2623.6,2623.5,5.48722569]
[1729613182467,0.0867035,2623.6,2623.5,4.82702905]
[1729613182669,0.7604,2624.1,2623.6,3.81146]
[1729613182908,0.7604,2624.1,2623.7,4.593]
[1729613183203,0.08715379,2624.0,2623.8,3.8112]
[1729613183413,0.08715379,2624.0,2623.7,8.40431]
[1729613183744,0.08715379,2624.0,2623.7,0.7816]
[1729613184383,0.08715379,2624.0,2623.5,6.50253474]
[1729613184581,1.76267948,2624.0,2623.6,0.65025347]
[1729613184937,0.08715379,2624.0,2623.6,4.46178347]
[1729613185115,1.76267948,2624.0,2623.6,0.65025347]
[1729613185616,1.76267948,2624.0,2623.6,4.46178347]
[1729613185821,0.08715379,2624.0,2623.6,4.46178347]
[1729613185996,0.08715379,2624.0,2623.7,0.79201382]
[1729613187320,0.08715379,2624.0,2623.7,4.60341382]
[1729613187531,0.08715379,2624.0,2623.7,0.79201382]
[1729613188926,0.08715379,2624.0,2623.7,4.60338382]
[1729613189102,0.08715379,2624.0,2623.8,2.49922569]
[1729613189308,0.08715379,2624.0,2623.9,0.32912395]
[1729613189631,0.08768852,2624.0,2623.6,4.63525]
[1729613189991,5.48626569,2624.2,2623.6,4.63525]
[1729613190194,0.0872052,2624.1,2623.7,3.8114]
[1729613190391,0.0872052,2624.1,2623.6,4.63521]
[1729613190790,0.0872052,2624.1,2623.6,6.31073569]
[1729613191031,0.0872052,2624.1,2623.7,0.73260647]
[1729613192428,0.0872052,2624.1,2623.7,6.21943216]
[1729613192633,2.43012569,2624.3,2623.7,6.21943216]
[1729613192944,0.08756804,2624.2,2623.8,3.81126]
[1729613193110,0.08756804,2624.2,2623.8,5.48678569]
[1729613193302,2.43012569,2624.3,2623.9,0.62193922]
[1729613193500,0.08751631,2624.1,2623.7,4.54394647]
[1729613193729,1.67552569,2624.2,2623.7,4.54394647]
[1729613194043,0.0875405,2624.1,2623.7,4.54394647]
[1729613195081,2.43012569,2624.3,2623.7,6.21947216]
[1729613195253,0.08691028,2624.0,2623.8,3.81124]
[1729613195453,2.43012569,2624.3,2623.9,1.00307122]
[1729613195888,1.67552569,2624.2,2623.9,1.00307122]
[1729613196039,1.67552569,2624.2,2623.8,3.81124]
[1729613196256,2.43012569,2624.3,2623.8,3.81124]
[1729613196439,1.67552569,2624.2,2623.7,4.54393647]
[1729613200342,2.43012569,2624.3,2623.8,3.81123]
[1729613200541,2.43012569,2624.3,2623.8,1.67552569]
[1729613200542,0.7546,2624.3,2623.8,1.67552569]
[1729613200778,0.7546,2624.3,2623.9,0.24081322]
[1729613200979,0.7546,2624.3,2623.9,4.05192322]
[1729613201182,3.80923,2625.2,2624.4,3.81039]
[1729613201485,0.02,2625.5,2624.3,3.81052]
[1729613201486,0.7708,2624.8,2624.3,3.81052]
[1729613201665,0.7708,2624.8,2624.3,2.43765969]
[1729613201867,2.44632569,2624.8,2624.3,0.762134]
[1729613202171,1.67552569,2624.7,2624.3,0.762134]
[1729613202370,0.08518846,2624.7,2624.3,0.762134]
[1729613202557,0.08518846,2624.7,2624.4,0.62483297]
[1729613202764,0.7708,2624.8,2624.4,0.62483297]
[1729613203239,0.08518846,2624.7,2624.4,0.62483297]
[1729613203445,0.7708,2624.8,2624.4,0.62483297]
[1729613203775,0.08518846,2624.7,2624.4,0.62483297]
[1729613204089,0.8188,2624.5,2624.0,20.3004]
[1729613204380,0.8188,2624.5,2624.0,7.62132]
[1729613204553,0.8188,2624.5,2624.0,9.29684569]
[1729613204759,0.08495478,2624.4,2624.1,0.95376589]
[1729613206062,1.67552569,2624.2,2623.7,23.30139]
[1729613206275,1.67552569,2624.2,2623.7,19.49]
[1729613206588,0.08493052,2624.1,2623.7,23.30134]
[1729613207173,2.47472569,2624.3,2623.7,23.30134]
[1729613207489,2.47472569,2624.3,2623.8,2.95632457]
[1729613207647,0.08500844,2624.2,2624.0,5.48641569]
[1729613207847,0.8023,2624.5,2624.0,6.36352777]
[1729613208088,0.08507822,2624.4,2624.0,4.68800208]
[1729613208286,0.08507822,2624.4,2624.1,1.01746378]
[1729613208693,0.08507822,2624.4,2624.1,4.82820378]
[1729613208876,0.08507822,2624.4,2624.1,6.57993732]
[1729613209193,0.08507822,2624.4,2624.2,3.81064]
[1729613209567,0.08507822,2624.4,2624.2,3.886847]
[1729613209746,0.08507822,2624.4,2624.3,0.65798365]
[1729613209944,1.67552569,2624.6,2624.3,0.65798365]
[1729613210170,1.67552569,2624.6,2624.2,3.81064]
[1729613210410,0.08515612,2624.5,2624.2,3.81064]
[1729613210715,2.47782569,2624.7,2624.2,3.81058]
[1729613210884,0.08507822,2624.4,2624.2,5.48610569]
[1729613211083,0.8023,2624.7,2624.4,3.81033]
[1729613211319,0.8017,2624.9,2624.5,0.55620598]
[1729613211522,0.8017,2624.9,2624.5,4.36639598]
[1729613211691,4.61095,2625.2,2624.7,1.67552569]
[1729613211895,0.8017,2625.2,2624.6,1.75172288]
[1729613212092,1.67552569,2625.1,2624.6,3.88622719]
[1729613212419,2.47722569,2625.2,2624.7,3.80995]
[1729613212613,2.47722569,2625.2,2624.7,7.61984]
[1729613212923,0.8017,2625.2,2624.8,3.80978]
[1729613213217,2.47722569,2625.2,2624.8,3.88596859]
[1729613213577,2.47722569,2625.2,2624.8,0.07618859]
[1729613213847,2.45702569,2625.4,2624.8,2.33901221]
[1729613214119,2.45702569,2625.4,2624.8,6.14875221]
[1729613214325,4.59045,2625.4,2624.8,4.47322652]
[1729613214815,4.59045,2625.4,2624.8,8.28296652]
[1729613215025,0.7815,2625.4,2624.9,4.5701]
[1729613215173,0.7815,2625.4,2625.0,0.90433765]
[1729613216202,0.7815,2625.4,2625.0,3.90433765]
[1729613216418,3.80858,2625.7,2625.1,3.8093]
[1729613216620,0.7782,2625.6,2625.1,3.88547988]
[1729613216803,0.7782,2625.6,2625.2,0.77898175]
[1729613217178,0.08089224,2625.5,2625.2,0.77898175]
[1729613219019,0.08089224,2625.5,2625.0,3.80949]
[1729613219998,3.80902,2625.4,2624.8,0.66348652]
[1729613220334,0.8027,2625.0,2624.2,4.6291]
[1729613220491,4.61222,2625.0,2624.2,4.6291]
[1729613220686,4.61222,2625.0,2624.2,0.8185]
[1729613220687,3.80988,2624.8,2624.2,0.8185]
[1729613221008,3.89029056,2624.7,2624.2,0.462922]
[1729613221327,0.08028056,2624.7,2624.2,0.462922]
[1729613221847,0.08028056,2624.7,2623.8,3.81121]
[1729613221848,3.81033,2624.5,2623.8,3.81121]
[1729613222055,3.89075402,2624.4,2623.7,4.61752]
[1729613222409,3.81041,2624.4,2623.7,4.61751]
[1729613222615,0.08010013,2624.3,2623.8,3.81124]
[1729613222814,0.08010013,2624.3,2623.9,0.461744]
[1729613223254,4.58118,2624.6,2623.9,4.272804]
[1729613223544,0.08007704,2624.5,2624.1,3.81081]
[1729613224121,0.08007704,2624.5,2623.9,4.272834]
[1729613224320,4.5816,2624.3,2623.7,0.8062]
[1729613224520,3.81075,2624.2,2623.5,0.8245]
[1729613224717,0.07980388,2624.2,2623.6,3.81155]
[1729613224953,3.89052388,2624.2,2623.5,0.8245]
[1729613225110,0.8075,2624.1,2623.2,0.79912542]
[1729613225310,3.81126,2623.8,2623.1,0.8278]
[1729613225544,3.81126,2623.8,2623.2,3.81213]
[1729613225704,0.07917215,2623.7,2623.0,23.30234]
[1729613225913,3.81126,2623.8,2623.1,3.81226]
[1729613226108,3.81126,2623.8,2623.2,2.71146]
[1729613226346,0.07894042,2623.7,2623.2,2.71146]
[1729613229456,3.89043042,2623.7,2623.2,2.71146]
[1729613229754,3.89043042,2623.7,2623.1,3.81227]
[1729613230428,4.61672,2623.6,2622.9,0.8278]
[1729613230634,0.07876406,2623.5,2623.0,3.8124]
[1729613230947,0.07876406,2623.5,2623.1,4.27629]
[1729613231328,0.07876406,2623.5,2623.1,4.27621]
[1729613231534,0.07876406,2623.5,2623.3,3.81198]
[1729613231842,0.8097,2623.9,2623.3,3.81198]
[1729613232053,0.07851521,2623.8,2623.4,4.30688618]
[1729613232371,0.07851521,2623.8,2623.5,7.62327]
[1729613232853,0.8097,2624.1,2623.5,7.62327]
[1729613232854,0.07769229,2623.7,2623.5,7.62327]
[1729613233057,4.62056,2624.1,2623.4,0.8323]
[1729613233360,3.39835573,2624.4,2623.1,4.27619]
[1729613233361,0.7626,2623.7,2623.2,3.81207]
[1729613233540,0.7626,2623.7,2623.3,0.844387]
[1729613234054,0.7626,2623.7,2623.3,0.92061901]
[1729613234226,0.7626,2623.7,2623.3,0.844387]
[1729613234427,0.7626,2623.7,2623.3,0.92061901]
[1729613234757,0.07840798,2623.6,2623.3,0.844387]
[1729613234914,0.07840798,2623.6,2623.0,24.10111]
[1729613235124,4.57406,2623.7,2623.0,23.30241]
[1729613235522,0.07805216,2623.6,2623.0,23.30241]
[1729613235822,4.57406,2623.7,2623.0,27.11477]
[1729613235823,4.57402,2623.7,2623.0,27.11477]
[1729613236021,0.07843791,2623.6,2623.0,27.11477]
[1729613236251,3.89001791,2623.6,2623.1,2.711477]
[1729613237266,0.07843791,2623.6,2623.1,2.711477]
[1729613237818,0.07843791,2623.6,2623.1,6.523737]
[1729613238038,0.07843791,2623.6,2623.1,6.59997426]
[1729613238658,0.07843791,2623.6,2623.2,7.21045573]
[1729613238838,0.7626,2623.7,2623.3,5.192973]
[1729613239037,0.7626,2623.7,2623.4,3.81179]
[1729613239241,0.07841176,2623.6,2623.4,3.81179]
[1729613239661,0.07841176,2623.6,2623.3,5.193003]
[1729613239825,0.7626,2623.7,2623.3,3.81191]
[1729613240031,0.7626,2623.7,2623.3,7.62384]
[1729613240272,0.7626,2623.7,2623.2,4.60341]
[1729613240560,0.7626,2623.7,2623.2,3.81211]
[1729613240865,0.07850372,2623.6,2623.2,3.81211]
[1729613241038,0.07850372,2623.6,2623.2,0.762429]
[1729613242369,0.07850372,2623.6,2623.3,3.81197]
[1729613242573,0.07850372,2623.6,2623.4,3.81173]
[1729613242888,0.76,2624.2,2623.6,3.81144]
[1729613243030,4.57069,2624.2,2623.6,3.81144]
[1729613243231,4.57069,2624.2,2623.6,4.99463557]
[1729613243437,0.76,2624.2,2623.6,1.18319557]
[1729613243664,0.76,2624.2,2623.7,3.8114]
[1729613244564,0.76,2624.2,2623.6,1.18319557]
[1729613244867,0.8163,2623.9,2623.3,19.49]
[1729613245230,0.8163,2623.9,2623.3,23.30191]
[1729613245843,4.62742,2623.9,2623.3,23.30191]
[1729613246583,0.8163,2623.9,2623.3,23.30191]
[1729613246983,0.8163,2623.9,2623.3,19.49]
[1729613247186,3.81077,2624.2,2623.5,4.56354]
[1729613247345,0.07875468,2623.8,2623.5,0.7519]
[1729613247546,4.56498,2624.1,2623.5,4.56358]
[1729613248052,0.07886987,2624.0,2623.5,4.56358]
[1729613248482,0.8062,2623.9,2623.4,2.36507847]
[1729613248649,0.07871401,2623.8,2623.3,23.30198]
[1729613248842,0.07871401,2623.8,2623.3,19.49]
[1729613249068,0.8062,2623.6,2623.3,19.49]
[1729613249268,0.07788567,2623.5,2623.3,19.49]
[1729613249581,0.07788567,2623.5,2623.2,3.81213]
[1729613250147,0.07788567,2623.5,2623.0,3.81242]
[1729613250349,0.07788567,2623.5,2622.9,0.7503]
[1729613250350,0.07788567,2623.5,2622.9,4.56282]
[1729613250561,0.07788567,2623.5,2623.0,3.81241]
[1729613250779,4.61785,2623.6,2623.0,3.81241]
[1729613251083,0.07854107,2623.5,2623.0,3.81242]
[1729613251479,0.07854107,2623.5,2623.1,3.81215]
[1729613251684,0.07854107,2623.5,2623.1,4.65726098]
[1729613252544,0.07854107,2623.5,2623.2,3.88836967]
[1729613252750,0.07854107,2623.5,2623.2,3.81207]
[1729613253486,0.07854107,2623.5,2623.1,4.65733098]
[1729613255054,0.07854107,2623.5,2623.1,4.73356635]
[1729613255266,0.07854107,2623.5,2623.2,4.66668864]
[1729613257393,0.07854107,2623.5,2623.2,0.85458864]
[1729613259399,0.07854107,2623.5,2623.1,3.8122]
[1729613259705,0.07854107,2623.5,2623.1,3.81219]
[1729613265520,0.07854107,2623.5,2623.2,3.81211]
[1729613265726,0.07854107,2623.5,2623.1,3.81224]
[1729613265928,0.07854107,2623.5,2623.1,4.60370499]
[1729613266230,0.07854107,2623.5,2623.1,5.63906924]
[1729613266383,0.07854107,2623.5,2623.1,4.84760425]
[1729613267714,0.07854107,2623.5,2623.1,5.63906924]
[1729613268123,0.07854107,2623.5,2623.2,7.60359499]
[1729613270612,0.07854107,2623.5,2623.3,0.79146499]
[1729613271523,0.8062,2623.6,2623.3,0.79146499]
[1729613271714,0.07585876,2623.4,2623.3,0.79146499]
[1729613271916,0.8062,2623.6,2623.3,0.79146499]
[1729613272127,0.07585876,2623.4,2623.3,0.79146499]
[1729613272302,0.8062,2623.6,2623.3,2.31357466]
[1729613272649,0.07593671,2623.5,2623.4,0.79146499]
[1729613272820,0.07593671,2623.5,2623.3,2.31357466]
[1729613273347,0.07593671,2623.5,2623.4,0.79146499]
[1729613277014,0.07593671,2623.5,2623.3,6.12554466]
[1729613277320,0.07593671,2623.5,2623.3,4.60343499]
[1729613277517,0.07593671,2623.5,2623.3,0.79146499]
[1729613277717,0.07593671,2623.5,2623.2,4.60353499]
[1729613278026,0.8062,2623.6,2623.2,4.60353499]
[1729613278347,0.8062,2623.6,2623.2,0.79146499]
[1729613278557,0.8062,2623.6,2623.2,4.60350499]
[1729613278860,0.07593671,2623.5,2623.2,4.60350499]
[1729613279745,0.07593671,2623.5,2623.3,3.81195]
[1729613279949,0.07593671,2623.5,2623.3,4.60341499]
[1729613280445,0.07593671,2623.5,2623.3,5.72198224]
[1729613280804,0.8273,2623.7,2623.4,0.79146499]
[1729613281002,0.0758475,2623.4,2623.3,4.60884641]
[1729613281242,0.8273,2623.7,2623.3,3.81195]
[1729613281452,0.8273,2623.7,2623.4,0.79683403]
[1729613281636,0.07617699,2623.6,2623.4,0.79683403]
[1729613281944,0.07617699,2623.6,2623.3,4.60878403]
[1729613282344,0.8273,2623.7,2623.3,4.60878403]
[1729613282547,0.8273,2623.7,2623.4,0.79683403]
[1729613283041,0.07617699,2623.6,2623.3,4.60878403]
[1729613283405,0.8273,2623.7,2623.3,4.60878403]
[1729613283608,1.291151,2623.7,2623.2,0.79683403]
[1729613283842,0.7962,2623.6,2623.2,4.60891403]
[1729613284142,0.07609906,2623.5,2623.2,4.60891403]
[1729613285903,0.07609906,2623.5,2623.2,8.42099403]
[1729613286107,0.07609906,2623.5,2623.3,3.81193]
[1729613286555,0.07609906,2623.5,2623.2,4.60891403]
[1729613287134,0.07609906,2623.5,2623.2,4.60889403]
[1729613287647,0.07609906,2623.5,2623.3,4.60872403]
[1729613287949,0.7962,2623.6,2623.4,3.81184]
[1729613288428,0.07615244,2623.5,2623.4,3.81184]
[1729613289659,0.07615244,2623.5,2623.3,4.60878403]
[1729613290015,0.7962,2623.6,2623.3,4.60878403]
[1729613290652,0.7962,2623.6,2623.4,3.81182]
[1729613290856,0.7962,2623.6,2623.4,0.79683403]
[1729613291059,0.07605073,2623.5,2623.3,4.60877403]
[1729613291347,0.7962,2623.6,2623.3,4.60877403]
[1729613293630,0.7962,2623.6,2623.3,0.79683403]
[1729613294152,4.61163,2623.2,2622.8,0.79683403]
[1729613294312,4.61163,2623.2,2622.7,0.79683403]
[1729613294313,1.67600798,2623.0,2622.7,0.79683403]
[1729613294512,0.07545898,2622.9,2622.7,0.79683403]
[1729613294771,2.47550798,2623.1,2622.7,0.79683403]
[1729613294930,0.07515071,2622.8,2622.7,0.79683403]
[1729613295267,6.28778798,2623.1,2622.6,0.79683403]
[1729613295858,1.67600798,2623.0,2622.6,0.79683403]
[1729613296032,6.28778798,2623.1,2622.6,0.79683403]
[1729613296211,0.07513753,2622.9,2622.6,0.79683403]
[1729613296637,3.81213,2623.2,2622.3,5.80829441]
[1729613296638,3.81309,2622.6,2622.3,0.79683403]
[1729613296897,3.81309,2622.6,2621.9,0.79683403]
[1729613296898,3.8133,2622.4,2621.9,0.79683403]
[1729613297199,4.64176,2622.2,2621.6,0.79683403]
[1729613297363,0.8281,2622.2,2621.7,3.8143]
[1729613297558,0.07414723,2622.1,2621.9,7.21804606]
[1729613297758,3.81312,2622.6,2621.9,3.81391]